bitfinex/quotes_ETHUSD_20240910
["timestamp","ask_amount","ask_price","bid_price","bid_amount"]
[1725978026105,5.3212525,2330.0,2329.3,12.46]
[1725978026106,2.4103,2329.5,2329.3,0.0235566]
[1725978026318,0.10736069,2329.4,2329.3,0.0303264]
[1725978026460,0.88448012,2329.4,2329.3,0.0303264]
[1725978026658,0.10736069,2329.4,2329.3,0.0303264]
[1725978027191,3.58974349,2329.9,2329.3,0.0303264]
[1725978027192,0.99216281,2329.7,2329.3,0.0303264]
[1725978027406,0.10733382,2329.7,2329.3,0.0303264]
[1725978028510,0.10732505,2329.8,2329.3,0.0303264]
[1725978028659,1.32724349,2330.2,2329.3,0.0303264]
[1725978028660,0.10732505,2329.9,2329.3,0.0303264]
[1725978029198,0.10731502,2330.2,2329.3,0.0303264]
[1725978029416,0.60612501,2330.2,2329.3,0.0303264]
[1725978030312,0.60612501,2330.2,2329.3,0.08434421]
[1725978030542,0.10731502,2330.2,2329.3,0.08434421]
[1725978030807,0.10729926,2330.3,2329.4,2.3582]
[1725978031024,0.10729926,2330.3,2329.5,0.05398292]
[1725978031183,0.10729926,2330.3,2329.5,0.50363563]
[1725978031505,0.10729926,2330.3,2329.5,3.51040543]
[1725978031706,3.965514,2330.6,2329.5,3.51040543]
[1725978031707,0.10729376,2330.4,2329.5,3.51040543]
[1725978033503,0.10729376,2330.4,2329.5,3.0067698]
[1725978033817,0.99212275,2330.4,2329.6,3.0]
[1725978033967,0.10729376,2330.4,2329.6,0.05398901]
[1725978034319,0.73578178,2330.4,2329.6,0.05398901]
[1725978034551,1.62061077,2330.4,2329.6,0.06075881]
[1725978034707,1.62061077,2330.4,2329.6,0.0067698]
[1725978035107,0.7666726,2330.3,2329.6,0.0067698]
[1725978035340,0.10730763,2330.2,2329.6,0.0067698]
[1725978037350,0.99213662,2330.2,2329.6,0.0067698]
[1725978037906,5.23177202,2330.1,2329.6,0.0067698]
[1725978038240,0.87359755,2330.0,2329.6,0.0067698]
[1725978038555,0.1073244,2330.0,2329.6,0.0067698]
[1725978038737,0.44967974,2330.0,2329.6,0.0067698]
[1725978039528,0.1073244,2330.0,2329.6,0.0067698]
[1725978040337,0.99214322,2330.2,2329.6,0.0067698]
[1725978040657,3.31622899,2330.0,2329.6,0.0067698]
[1725978040809,0.87372026,2329.9,2329.6,0.0067698]
[1725978041008,0.41899492,2329.8,2329.6,0.0067698]
[1725978041248,0.52631512,2329.8,2329.6,0.0067698]
[1725978041444,0.1073202,2329.8,2329.6,0.0067698]
[1725978041653,0.1073202,2330.1,2329.6,0.0067698]
[1725978042725,0.8736809,2330.1,2329.6,0.0067698]
[1725978043010,0.82714871,2330.0,2329.6,0.0067698]
[1725978043211,3.31622899,2330.2,2329.6,0.0067698]
[1725978043212,0.10732155,2329.9,2329.6,0.0067698]
[1725978044855,0.10731837,2330.1,2329.6,0.0067698]
[1725978045152,0.58239745,2330.1,2329.6,0.0067698]
[1725978047169,0.10731837,2330.1,2329.6,0.0067698]
[1725978047822,2.3963,2330.0,2329.6,0.0067698]
[1725978048027,0.10733295,2329.9,2329.6,0.0067698]
[1725978049425,4.29221,2329.8,2329.6,0.0067698]
[1725978049640,4.29221,2329.8,2329.3,0.0235566]
[1725978049641,16.28783716,2329.7,2329.3,0.0235566]
[1725978049928,4.96485107,2329.4,2329.3,0.0235566]
[1725978050126,16.24679832,2329.4,2329.3,0.0235566]
[1725978050377,15.59676,2329.0,2328.9,0.0235566]
[1725978050673,15.59676,2329.0,2328.4,0.0235566]
[1725978050674,4.08157719,2328.5,2328.4,0.0235566]
[1725978050868,4.29413,2328.8,2328.4,0.0235566]
[1725978050869,2.3136695,2328.7,2328.4,0.0235566]
[1725978051070,0.63952467,2328.6,2328.4,0.0235566]
[1725978051273,0.10739194,2328.5,2328.4,0.0235566]
[1725978051577,4.18896913,2328.5,2328.4,0.0235566]
[1725978051740,4.18896913,2328.5,2328.2,0.0302724]
[1725978051741,2.4834,2328.4,2328.2,0.0302724]
[1725978051920,4.73898256,2328.3,2328.2,0.0302724]
[1725978052339,0.10740537,2328.3,2328.2,0.0302724]
[1725978053031,0.48284938,2328.4,2328.2,0.0302724]
[1725978053032,0.10738762,2328.4,2328.2,0.0302724]
[1725978053227,0.10738266,2328.7,2328.2,0.0302724]
[1725978054028,1.32376241,2329.2,2328.3,2.2849]
[1725978054029,0.10737805,2328.8,2328.3,2.2849]
[1725978054252,0.09616724,2328.9,2328.3,2.2849]
[1725978054753,0.10736651,2329.2,2328.3,2.2849]
[1725978054927,0.97335192,2329.2,2328.3,2.2849]
[1725978055329,1.85536642,2329.2,2328.3,2.2849]
[1725978055675,0.97335192,2329.2,2328.3,2.2849]
[1725978056474,0.10736651,2329.2,2328.4,0.0541261]
[1725978057184,0.10734842,2329.3,2328.5,2.4967]
[1725978057473,0.10734842,2329.3,2328.6,0.30918522]
[1725978058139,0.10734842,2329.3,2328.6,0.25508261]
[1725978058341,0.10734842,2329.3,2328.5,2.4967]
[1725978058342,0.98936292,2329.3,2328.5,2.4967]
[1725978058577,0.98936292,2329.3,2328.6,0.05411532]
[1725978058578,0.10736087,2329.2,2328.6,0.05411532]
[1725978058770,0.10736087,2329.2,2328.6,0.60919685]
[1725978058979,1.32376241,2329.5,2328.6,0.60919685]
[1725978058980,0.8820145,2329.5,2328.7,2.405]
[1725978059275,0.10732346,2329.8,2328.9,2.405]
[1725978059425,0.10731828,2329.9,2329.0,2.45903291]
[1725978059632,0.10731828,2329.9,2329.1,2.4373]
[1725978059869,0.10731828,2329.9,2329.2,0.05402212]
[1725978060372,0.10731828,2329.9,2329.1,5.4373]
[1725978060685,0.10731828,2329.9,2329.1,6.01363465]
[1725978060891,0.98933278,2329.9,2329.1,6.01363465]
[1725978061059,2.80040538,2329.8,2329.1,2.4373]
[1725978061265,0.87465885,2329.7,2329.1,2.4373]
[1725978061585,0.10733319,2329.7,2329.1,2.4373]
[1725978062695,3.43504769,2329.7,2328.7,9.7245]
[1725978062984,2.80097132,2329.6,2328.7,9.7245]
[1725978063190,0.98936245,2329.5,2328.7,9.7245]
[1725978063400,0.98936245,2329.5,2328.5,7.38]
[1725978063604,0.8820145,2329.3,2328.5,7.38]
[1725978063907,0.8820145,2329.0,2328.3,7.38]
[1725978064230,0.57350009,2328.9,2328.3,7.38]
[1725978064553,0.1073724,2328.9,2328.3,7.38]
[1725978065000,0.9893869,2328.9,2328.3,7.38]
[1725978065163,0.1073724,2328.9,2328.3,7.38]
[1725978065507,0.33868733,2328.9,2328.3,7.38]
[1725978065802,0.33868733,2328.9,2328.2,0.0302724]
[1725978065803,1.22070183,2328.9,2328.2,0.0302724]
[1725978065956,0.8820145,2328.7,2328.2,0.0302724]
[1725978066301,0.10738822,2328.6,2328.2,0.0302724]
[1725978066508,0.7716975,2328.6,2328.2,0.0302724]
[1725978067899,0.10738822,2328.6,2328.2,0.0302724]
[1725978068961,1.11332943,2328.9,2328.2,0.0302724]
[1725978068962,0.10738331,2328.8,2328.2,0.0302724]
[1725978069274,0.98939781,2328.8,2328.2,0.0302724]
[1725978069470,0.10737232,2328.7,2328.2,0.0302724]
[1725978069774,0.98938682,2328.7,2328.2,0.0302724]
[1725978070196,0.10737232,2328.7,2328.2,0.0302724]
[1725978070874,0.10737232,2328.7,2328.2,2.3863724]
[1725978071609,0.8820145,2328.7,2328.2,0.0302724]
[1725978071906,0.3279657,2328.6,2328.2,0.0302724]
[1725978072134,5.23000843,2328.6,2328.2,0.0302724]
[1725978072399,2.43088801,2328.6,2328.2,0.0302724]
[1725978072574,0.10738801,2328.6,2328.2,0.0302724]
[1725978072999,0.10737368,2328.5,2328.2,0.0302724]
[1725978074006,3.64726241,2328.9,2328.2,0.0302724]
[1725978074007,0.10737913,2328.6,2328.2,0.0302724]
[1725978074378,0.10737263,2328.9,2328.2,0.0302724]
[1725978074723,2.3893,2328.8,2328.2,0.0302724]
[1725978075003,7.28079049,2328.7,2328.2,0.0302724]
[1725978075220,2.79811987,2328.6,2328.2,0.0302724]
[1725978075504,2.90551261,2328.5,2328.2,0.0302724]
[1725978075706,0.29055126,2328.4,2328.2,0.0302724]
[1725978075931,0.10739733,2328.3,2328.2,0.0302724]
[1725978076143,2.44769733,2328.3,2328.2,0.0302724]
[1725978076446,2.44769733,2328.3,2327.8,7.38]
[1725978076739,0.10740014,2328.2,2327.8,7.38]
[1725978076900,0.10740014,2328.2,2327.6,0.0311286]
[1725978077103,0.4403716,2328.2,2327.6,0.0311286]
[1725978077495,0.4403716,2328.2,2327.7,2.3625]
[1725978077846,0.10740014,2328.2,2327.7,2.3625]
[1725978078141,0.10739512,2328.4,2327.7,2.3625]
[1725978079863,0.10739512,2328.4,2327.6,0.0311286]
[1725978080160,0.43410608,2328.4,2327.6,0.0311286]
[1725978080324,0.10737734,2328.5,2327.7,2.38857464]
[1725978080516,0.10737734,2328.5,2327.7,5.3344]
[1725978080715,2.2689,2328.4,2327.6,0.0311286]
[1725978080915,0.34502124,2328.3,2327.6,0.0311286]
[1725978081159,0.10739691,2328.2,2327.6,0.0311286]
[1725978081365,0.10738643,2328.5,2327.8,2.2777]
[1725978081860,0.10738643,2328.5,2327.9,0.05418837]
[1725978082176,0.10738643,2328.5,2327.9,0.28737721]
[1725978082362,0.10737692,2328.6,2327.9,3.28737721]
[1725978082931,1.32376241,2329.0,2327.9,3.28737721]
[1725978082932,0.98937937,2329.0,2328.0,2.3504]
[1725978083231,0.10736487,2329.0,2328.2,2.3504]
[1725978083580,0.8820145,2329.2,2328.4,2.3504]
[1725978083856,0.10735193,2329.3,2328.4,2.3504]
[1725978083857,0.10735193,2329.3,2328.4,5.3504]
[1725978084059,0.10735193,2329.3,2328.5,0.05409312]
[1725978084271,4.11591655,2329.7,2328.6,2.3504]
[1725978084272,0.8820145,2329.6,2328.6,2.3504]
[1725978084412,0.8820145,2329.7,2328.9,2.0]
[1725978084620,1.43108513,2329.8,2328.9,2.0]
[1725978084621,0.98933722,2329.8,2329.0,2.46053003]
[1725978084859,1.32376241,2329.9,2329.1,0.446053]
[1725978084860,0.10731708,2329.7,2329.1,0.446053]
[1725978085661,0.98933158,2329.7,2329.0,5.46053003]
[1725978085868,0.10731708,2329.7,2329.0,2.46053003]
[1725978086333,0.10732075,2329.8,2329.0,2.46053003]
[1725978086672,0.98933585,2330.0,2329.1,2.2773]
[1725978086969,1.35489101,2330.1,2329.1,2.2773]
[1725978086970,0.9131431,2330.1,2329.3,2.0]
[1725978087263,0.9131431,2330.1,2329.2,0.05400376]
[1725978087264,0.0311286,2330.1,2329.7,2.2773]
[1725978087472,0.0311286,2330.1,2329.8,0.48168054]
[1725978087772,0.0311286,2330.1,2329.8,3.48168054]
[1725978088070,0.0311286,2330.1,2329.9,0.05394788]
[1725978088357,0.0311286,2330.1,2329.9,0.05394766]
[1725978088776,0.0311286,2330.1,2330.0,2.2731]
[1725978089071,0.0311286,2330.1,2330.0,5.83357777]
[1725978090232,0.0311286,2330.1,2329.2,4.6346383]
[1725978090573,0.0311286,2330.1,2329.4,2.2615]
[1725978090772,2.3048,2330.0,2329.0,0.05402477]
[1725978090987,0.10731869,2329.9,2329.0,0.48557725]
[1725978091686,0.0311286,2330.1,2329.5,2.0]
[1725978091855,0.0311286,2330.1,2329.6,2.44044643]
[1725978092040,0.0311286,2330.1,2329.6,5.44044643]
[1725978092238,0.0311286,2330.1,2329.6,2.44044643]
[1725978092441,0.0311286,2330.1,2329.7,0.44404464]
[1725978092641,0.0311286,2330.1,2329.7,3.0]
[1725978092840,0.0311286,2330.1,2329.6,2.3865]
[1725978093166,0.0311286,2330.1,2329.7,0.05396982]
[1725978096043,0.0311286,2330.1,2329.7,0.05395674]
[1725978096388,0.0311286,2330.1,2329.7,5.05395674]
[1725978096678,0.0311286,2330.1,2329.8,0.74404567]
[1725978096880,0.0311286,2330.1,2329.9,0.05392464]
[1725978097037,0.0311286,2330.1,2329.8,3.0]
[1725978097242,0.0311286,2330.1,2329.8,0.05396565]
[1725978097792,0.0311286,2330.1,2329.8,0.79801222]
[1725978098281,0.0311286,2330.1,2329.8,3.79801222]
[1725978098505,0.0311286,2330.1,2330.0,4.4481]
[1725978098724,0.0311286,2330.1,2330.0,8.05198957]
[1725978098999,0.0311286,2330.1,2330.0,7.50198973]
[1725978099170,0.0311286,2330.1,2330.0,3.0]
[1725978099370,0.0311286,2330.1,2329.8,3.0]
[1725978099570,0.0311286,2330.1,2329.8,0.05395663]
[1725978099785,0.0311286,2330.1,2329.5,0.05397057]
[1725978099995,0.0311286,2330.1,2329.5,1.52186057]
[1725978100296,0.0311286,2330.1,2329.6,2.0]
[1725978100501,0.0311286,2330.1,2329.7,0.05394322]
[1725978101099,0.0311286,2330.1,2329.8,2.3945]
[1725978101270,0.0311286,2330.1,2329.9,0.29877329]
[1725978101473,0.0311286,2330.1,2329.9,3.29877329]
[1725978101805,0.0311286,2330.1,2329.9,5.29877329]
[1725978102676,0.0311286,2330.1,2329.9,3.29877329]
[1725978103390,0.0311286,2330.1,2329.9,3.05392897]
[1725978103571,0.0311286,2330.1,2329.9,0.05392897]
[1725978104110,0.0311286,2330.1,2329.5,1.46789]
[1725978104901,0.0311286,2330.1,2329.6,0.05399639]
[1725978105200,0.0311286,2330.1,2329.3,7.38]
[1725978105413,0.0311286,2330.1,2329.4,3.05399544]
[1725978106359,2.4327,2330.0,2329.1,2.4868]
[1725978106662,0.0311286,2330.1,2329.2,2.05402819]
[1725978107002,0.0311286,2330.1,2329.3,0.50807103]
[1725978107513,0.0311286,2330.1,2329.5,2.0]
[1725978107800,0.0311286,2330.1,2329.6,0.05395858]
[1725978108808,0.0311286,2330.1,2329.5,0.05399005]
[1725978109022,2.4477,2329.9,2329.1,3.0]
[1725978109195,2.4477,2329.9,2328.8,2.2941]
[1725978109196,0.36281826,2329.8,2328.8,2.2941]
[1725978109396,0.107333,2329.7,2328.9,0.05406642]
[1725978109747,0.107333,2329.7,2328.9,0.28888306]
[1725978109908,0.107333,2329.7,2328.9,0.23481664]
[1725978110062,0.107333,2329.7,2328.8,2.0]
[1725978110063,2.2637,2329.6,2328.8,2.0]
[1725978110408,0.10733253,2329.5,2328.9,0.05406711]
[1725978110710,0.10733253,2329.5,2328.5,2.2941]
[1725978111007,0.10733253,2329.5,2328.7,2.0]
[1725978111192,0.10733253,2329.5,2328.4,2.0]
[1725978111365,2.3307,2329.4,2328.2,2.2517]
[1725978111711,2.3307,2329.2,2328.2,0.05411265]
[1725978111909,0.10736398,2329.1,2328.2,0.05411265]
[1725978112210,2.3307,2329.0,2328.2,0.05411265]
[1725978112391,0.10737046,2328.9,2328.1,0.05414619]
[1725978112578,0.35117686,2328.9,2328.1,0.05414619]
[1725978112912,0.10737046,2328.9,2328.1,2.05414619]
[1725978113408,0.10737046,2328.9,2328.1,2.06194579]
[1725978114211,0.10737046,2328.9,2328.1,0.06191834]
[1725978115279,2.55875731,2329.3,2328.2,2.0]
[1725978115483,0.3632281,2329.2,2328.3,0.05411471]
[1725978117471,2.55874923,2329.3,2328.3,0.05411471]
[1725978117916,2.4514,2329.3,2328.4,2.324]
[1725978118214,0.0158213,2329.5,2328.5,2.0540829]
[1725978118513,0.1231564,2329.5,2328.5,5.29189437]
[1725978119486,0.0158213,2329.5,2328.8,2.0]
[1725978119709,0.0158213,2329.5,2328.9,0.05404671]
[1725978119930,0.0158213,2329.5,2329.4,2.3306]
[1725978120099,0.0158213,2329.5,2329.4,5.38456586]
[1725978120298,0.0158213,2329.5,2329.4,3.05396586]
[1725978120535,0.0158213,2329.5,2329.3,0.05401693]
[1725978120843,0.0158213,2329.5,2329.3,4.30241862]
[1725978121037,0.0158213,2329.5,2329.4,24.7459]
[1725978121217,0.0158213,2329.5,2329.4,25.2959]
[1725978121395,0.0158213,2329.5,2329.4,24.7459]
[1725978121601,0.0158213,2329.5,2329.4,3.0]
[1725978121801,0.0158213,2329.5,2329.2,0.22598201]
[1725978122001,0.0158213,2329.5,2329.3,0.05403575]
[1725978122298,0.0158213,2329.5,2329.2,0.171965]
[1725978122533,2.2938213,2329.5,2328.9,0.0540536]
[1725978122801,0.10733194,2329.4,2328.9,0.0540536]
[1725978123051,0.0158213,2329.5,2328.9,2.0540536]
[1725978123909,0.0158213,2329.5,2329.0,2.3324]
[1725978124234,0.0158213,2329.5,2329.3,2.0]
[1725978124420,0.0158213,2329.5,2329.4,0.05398734]
[1725978125959,0.0158213,2329.5,2329.2,3.0]
[1725978126167,0.0158213,2329.5,2329.3,0.0540272]
[1725978126378,2.3430213,2329.5,2329.1,19.43]
[1725978126542,0.34163383,2329.4,2328.8,7.38]
[1725978126744,0.23430213,2329.4,2328.9,0.05406512]
[1725978127052,2.3430213,2329.5,2328.9,0.05406512]
[1725978127891,0.10732911,2329.4,2328.5,7.38]
[1725978128057,0.23430213,2329.4,2328.7,0.0540589]
[1725978128385,2.4454,2329.2,2328.6,0.05406796]
[1725978128542,2.71337021,2329.2,2328.6,0.05406796]
[1725978129367,2.4454,2329.2,2328.6,0.05406796]
[1725978130555,2.4454,2329.2,2328.6,3.05406796]
[1725978131279,2.4454,2329.2,2328.6,5.05406796]
[1725978131485,0.10733309,2329.1,2328.6,3.05406796]
[1725978131690,2.4454,2329.2,2328.6,3.05406796]
[1725978131691,2.55274582,2329.2,2328.6,3.05406796]
[1725978131904,3.2195358,2329.5,2328.7,2.4301]
[1725978132192,0.0158213,2329.5,2329.0,4.0810304]
[1725978132395,0.0158213,2329.5,2329.3,2.0]
[1725978132549,0.0158213,2329.5,2329.4,0.05399166]
[1725978132751,0.0158213,2329.5,2329.4,3.05399166]
[1725978132951,0.0158213,2329.5,2329.4,3.60399166]
[1725978133397,0.0158213,2329.5,2329.4,3.05399166]
[1725978133549,0.0158213,2329.5,2329.4,4.21649284]
[1725978133987,0.0158213,2329.5,2329.4,4.76649284]
[1725978134217,0.0158213,2329.5,2329.4,4.21649284]
[1725978134691,0.0158213,2329.5,2329.4,3.05398063]
[1725978134853,0.0158213,2329.5,2329.4,0.05398063]
[1725978135693,0.0158213,2329.5,2329.3,0.05402948]
[1725978136064,0.0158213,2329.5,2329.1,0.05402917]
[1725978136798,0.0158213,2329.5,2328.9,0.05405447]
[1725978136799,2.3524,2329.4,2328.9,0.05405447]
[1725978137391,0.0158213,2329.5,2328.9,0.05405447]
[1725978138091,0.0158213,2329.5,2329.0,2.0]
[1725978138306,0.0158213,2329.5,2329.1,0.05400477]
[1725978138795,0.0158213,2329.5,2329.4,2.0]
[1725978138951,0.0158213,2329.5,2329.4,4.54987927]
[1725978139152,0.0158213,2329.5,2329.4,5.0598672]
[1725978139348,0.0158213,2329.5,2329.4,5.5639672]
[1725978140099,0.0158213,2329.5,2329.4,8.6097672]
[1725978141300,0.0158213,2329.5,2329.4,5.56394294]
[1725978141683,0.0158213,2329.5,2329.4,6.11394294]
[1725978141884,0.0158213,2329.5,2329.4,5.56394294]
[1725978142181,0.0158213,2329.5,2329.4,6.11394294]
[1725978142386,0.0158213,2329.5,2329.4,8.54234294]
[1725978142701,0.0158213,2329.5,2329.4,6.11392205]
[1725978142905,0.0158213,2329.5,2329.4,5.56392205]
[1725978144793,0.0158213,2329.5,2329.4,9.04590077]
[1725978144995,0.0158213,2329.5,2329.4,8.56522205]
[1725978145422,0.0236209,2330.0,2329.9,8.5323304]
[1725978145554,0.0236209,2330.0,2329.9,9.13620431]
[1725978145757,0.0236209,2330.5,2330.4,2.0]
[1725978145998,0.0236209,2330.5,2330.4,8.48414814]
[1725978146181,0.0236209,2330.5,2330.4,9.82874521]
[1725978146392,0.0236209,2330.5,2330.4,5.84841481]
[1725978146750,0.0236209,2330.5,2330.4,9.92944521]
[1725978146985,0.0236209,2330.5,2330.4,12.80264521]
[1725978148091,0.0236209,2330.5,2330.4,5.84841481]
[1725978148604,0.0236209,2330.5,2330.4,9.9832932]
[1725978148910,0.0236209,2330.5,2330.4,12.9701932]
[1725978149210,0.0236209,2330.5,2330.4,5.84841481]
[1725978149863,0.0236209,2330.5,2330.4,12.32534521]
[1725978150198,0.0236209,2330.5,2330.4,8.24431481]
[1725978150854,0.0236209,2330.5,2330.4,5.84841481]
[1725978151056,0.0236209,2330.5,2330.4,9.92944521]
[1725978151359,0.0236209,2330.5,2330.4,12.23344521]
[1725978151684,0.0236209,2330.5,2330.4,5.84841481]
[1725978153357,0.0236209,2330.5,2330.1,0.67132282]
[1725978153559,2.2747,2330.4,2330.1,0.67132282]
[1725978153786,0.10728507,2330.3,2330.1,0.67132282]
[1725978153970,2.2747,2330.4,2330.1,0.67132282]
[1725978154183,2.50453209,2330.4,2330.1,0.67132282]
[1725978154386,2.2747,2330.4,2330.1,0.67132282]
[1725978154935,0.0236209,2330.5,2330.1,0.67132282]
[1725978154936,0.10727833,2330.3,2330.1,0.67132282]
[1725978155091,2.2808,2330.2,2330.1,0.67132282]
[1725978155904,2.5044209,2330.5,2330.1,0.67132282]
[1725978156165,0.0236209,2330.5,2330.2,0.05391589]
[1725978156384,0.0236209,2330.5,2330.2,2.05391589]
[1725978156581,0.0236209,2330.5,2330.3,0.32640742]
[1725978157408,0.0236209,2330.5,2330.4,0.55]
[1725978158262,0.0236209,2330.5,2330.4,4.6310304]
[1725978158561,0.0236209,2330.5,2330.4,7.6310304]
[1725978158774,0.0236209,2330.5,2330.4,7.68486471]
[1725978159013,0.0236209,2330.5,2330.4,8.98599192]
[1725978160200,0.0236209,2330.5,2330.4,4.85112721]
[1725978160407,0.0236209,2330.5,2330.4,0.60384239]
[1725978161084,0.0236209,2330.5,2330.3,3.27252387]
[1725978161291,0.0236209,2330.5,2330.4,0.0538652]
[1725978161690,0.0236209,2330.5,2330.4,0.053878]
[1725978162128,0.0236209,2330.5,2329.8,7.38]
[1725978162275,2.3612,2330.4,2329.9,0.05396407]
[1725978163481,2.3612,2330.4,2329.9,2.05396407]
[1725978163733,0.0236209,2330.5,2329.9,2.05396407]
[1725978164290,0.0236209,2330.5,2329.9,0.27655358]
[1725978164523,0.0236209,2330.5,2329.9,0.05396407]
[1725978164739,0.0236209,2330.5,2329.9,2.05396407]
[1725978164903,0.0236209,2330.5,2329.7,0.22586711]
[1725978165102,2.3052,2330.4,2329.8,0.05395767]
[1725978165339,0.10728692,2330.3,2329.5,7.38]
[1725978165547,0.3508977,2330.3,2329.6,0.05399531]
[1725978166406,2.3052,2330.4,2329.7,2.0]
[1725978166621,2.3052,2330.4,2329.8,0.05393391]
[1725978167015,0.10727718,2330.3,2329.8,0.05393391]
[1725978167240,0.10727718,2330.3,2329.6,3.05397202]
[1725978167529,2.3052,2330.4,2329.7,2.0]
[1725978167747,2.3052,2330.4,2329.8,0.05394205]
[1725978169106,0.09624821,2330.3,2329.7,0.05394765]
[1725978169310,2.3052,2330.4,2329.8,0.05398438]
[1725978169515,2.3052,2330.4,2329.8,2.05398438]
[1725978169725,0.0236209,2330.5,2329.8,2.05398438]
[1725978170393,0.0236209,2330.5,2330.1,2.0]
[1725978170623,0.0236209,2330.5,2330.2,0.05389715]
[1725978171145,0.0236209,2330.5,2330.4,2.0]
[1725978172021,0.0236209,2330.5,2330.2,0.05389715]
[1725978172220,0.0236209,2330.5,2330.2,2.71036066]
[1725978172540,0.0236209,2330.5,2330.3,3.0]
[1725978172744,0.0236209,2330.5,2330.4,0.05388606]
[1725978173099,0.0236209,2330.5,2330.3,3.05390006]
[1725978173849,0.0236209,2330.5,2330.3,5.62493934]
[1725978175221,0.0236209,2330.5,2330.3,3.05390006]
[1725978175410,0.0236209,2330.5,2330.3,3.0]
[1725978175411,2.4101,2330.4,2330.3,3.0]
[1725978175626,2.4101,2330.4,2330.0,21.43]
[1725978175627,2.4101,2330.4,2330.1,3.05393251]
[1725978175855,2.4101,2330.4,2330.1,5.19693251]
[1725978176151,2.4101,2330.4,2329.8,7.38]
[1725978176447,0.10727666,2330.3,2329.8,0.05396561]
[1725978177145,2.51739003,2330.4,2329.8,0.05396561]
[1725978177464,2.51739003,2330.4,2329.6,0.05396518]
[1725978177640,2.85969257,2330.4,2329.6,3.99196518]
[1725978177943,2.85969257,2330.4,2329.6,0.05396518]
[1725978178248,3.63441704,2330.4,2329.6,0.05396518]
[1725978178403,2.4101,2330.4,2329.6,0.05396518]
[1725978178820,2.4101,2330.4,2329.7,2.0]
[1725978179099,2.4101,2330.4,2329.8,0.05393315]
[1725978179898,2.4101,2330.4,2330.0,2.0]
[1725978180252,0.0236209,2330.5,2330.1,0.05392393]
[1725978180401,0.0236209,2330.5,2330.1,2.20231632]
[1725978180598,0.0236209,2330.5,2330.1,0.05392393]
[1725978181155,0.0236209,2330.5,2330.1,2.05392393]
[1725978182160,0.0236209,2330.5,2330.4,2.0]
[1725978182324,0.0236209,2330.5,2330.4,2.05386909]
[1725978182512,0.0236209,2330.5,2330.4,6.13489949]
[1725978182717,0.0236209,2330.5,2330.4,13.25483816]
[1725978182943,0.0236209,2330.5,2330.4,35.01253816]
[1725978183147,0.0236209,2330.5,2330.4,71.81211051]
[1725978183349,0.0236209,2330.9,2330.8,2.0]
[1725978183622,0.0236209,2330.9,2330.8,6.68480274]
[1725978183819,0.0236209,2330.9,2330.8,10.35328301]
[1725978184723,0.0236209,2330.9,2330.8,6.27225261]
[1725978184922,0.0236209,2330.9,2330.8,5.72225261]
[1725978185118,0.0236209,2330.9,2330.8,6.27225261]
[1725978185358,0.0236209,2330.9,2330.8,5.66848027]
[1725978185973,0.0236209,2330.9,2330.8,10.29951067]
[1725978186157,0.0236209,2330.9,2330.8,6.21848027]
[1725978186334,0.0236209,2330.9,2330.8,25.15228318]
[1725978188423,0.0236209,2330.9,2330.5,2.0]
[1725978188623,0.0236209,2330.9,2330.6,0.05385464]
[1725978189245,0.0236209,2330.9,2330.2,9.38]
[1725978189546,2.283,2330.8,2330.2,7.38]
[1725978189850,0.23066209,2330.7,2330.2,7.38]
[1725978190051,0.10726844,2330.7,2330.2,7.38]
[1725978190590,0.10726844,2330.7,2329.8,7.38]
[1725978190591,2.4994,2330.6,2329.8,7.38]
[1725978190888,2.4994,2330.4,2329.8,0.05396691]
[1725978191042,2.4994,2330.4,2329.8,2.05396691]
[1725978191378,2.4807,2330.7,2330.1,2.0]
[1725978191538,2.4807,2330.7,2330.2,0.05390091]
[1725978191935,2.4807,2330.7,2330.1,2.0]
[1725978192334,2.4807,2330.7,2330.2,0.0539082]
[1725978193449,2.73113209,2330.7,2329.8,2.05390151]
[1725978193690,2.73113209,2330.7,2330.1,2.0]
[1725978193691,2.4807,2330.7,2330.1,2.0]
[1725978193886,2.58796331,2330.7,2330.2,0.05390097]
[1725978194187,2.58796331,2330.7,2329.9,0.05393018]
[1725978194338,2.3788,2330.5,2329.6,0.60277365]
[1725978194535,2.3788,2330.3,2329.7,0.05396693]
[1725978195978,3.2120145,2330.6,2329.8,2.0]
[1725978196304,3.2120145,2330.6,2330.1,2.0]
[1725978196305,2.33,2330.6,2330.1,2.0]
[1725978196604,2.33,2330.6,2330.2,0.05390567]
[1725978197597,0.9056354,2330.9,2330.2,0.05390567]
[1725978197598,0.0236209,2330.9,2330.4,2.0]
[1725978197798,0.0236209,2330.9,2330.5,0.05384876]
[1725978198098,0.0236209,2330.9,2330.5,0.55923364]
[1725978198293,0.0236209,2330.9,2330.5,3.55923364]
[1725978198452,0.0236209,2330.9,2330.5,3.05384876]
[1725978198655,0.0236209,2330.9,2330.5,0.05384876]
[1725978198858,0.0236209,2330.9,2330.1,3.0]
[1725978199068,0.0236209,2330.9,2330.2,0.05390046]
[1725978200372,2.3233,2330.8,2330.2,0.05390046]
[1725978200911,0.0236209,2330.9,2330.2,0.05390046]
[1725978200912,0.0236209,2330.9,2330.3,2.0]
[1725978201063,0.0236209,2330.9,2330.7,2.0]
[1725978201278,0.0236209,2330.9,2330.8,0.05382461]
[1725978204030,0.0236209,2330.9,2330.8,6.63031011]
[1725978204194,0.0236209,2330.9,2330.8,4.21731011]
[1725978206511,0.0236209,2330.9,2330.8,4.1634855]
[1725978206709,0.0236209,2330.9,2330.8,4.21728195]
[1725978208960,0.0236209,2330.9,2330.8,6.67818195]
[1725978209563,0.0236209,2330.9,2330.8,3.66726732]
[1725978210559,0.0236209,2330.9,2330.8,4.14794604]
[1725978210719,0.0236209,2330.9,2330.8,4.69794604]
[1725978211123,0.0236209,2330.9,2330.8,26.58884604]
[1725978211353,0.0236209,2331.4,2330.8,26.58884604]
[1725978211354,0.0236209,2331.4,2331.3,2.0]
[1725978211553,0.0236209,2331.4,2331.3,28.5611673]
[1725978211877,0.0236209,2331.4,2331.3,31.5611673]
[1725978212245,0.0236209,2331.4,2331.3,32.04184602]
[1725978213546,0.0236209,2331.4,2331.3,67.04184602]
[1725978213790,0.0236209,2331.4,2331.3,36.98066615]
[1725978214292,0.0236209,2331.9,2331.8,2.0]
[1725978214457,0.0236209,2331.9,2331.8,26.0610304]
[1725978214635,0.0236209,2331.9,2331.8,29.01438746]
[1725978214841,0.0236209,2331.9,2331.8,25.5934855]
[1725978215142,0.0236209,2331.9,2331.8,25.0434855]
[1725978215691,0.0236209,2331.9,2331.5,21.43]
[1725978215996,2.2835,2331.8,2331.5,21.43]
[1725978216205,2.2835,2331.8,2331.6,0.05375753]
[1725978216550,2.2835,2331.8,2331.5,21.43]